bitfinex-derivatives/quotes_BTCF0:USTF0_20251130
["timestamp","ask_amount","ask_price","bid_price","bid_amount"]
[1764534940080,0.010958,91264.0,91261.0,0.0109583]
[1764534940285,0.03112,91262.0,91261.0,0.0563983]
[1764534940582,0.14718953,91262.0,91261.0,0.0563983]
[1764534942284,0.14918953,91262.0,91261.0,0.0563983]
[1764534942484,0.14918953,91262.0,91261.0,0.07032072]
[1764534943788,0.14918953,91262.0,91261.0,0.05936242]
[1764534968906,0.14718953,91262.0,91261.0,0.05936242]
[1764534969104,0.11806953,91262.0,91261.0,0.05936242]
[1764534969297,0.00016435,91271.0,91270.0,0.04314]
[1764534969700,0.12223682,91271.0,91270.0,0.04314]
[1764534970006,0.13779682,91271.0,91270.0,0.04314]
[1764534970508,0.15335682,91271.0,91270.0,0.12202626]
[1764534971008,0.15435682,91271.0,91270.0,0.12202626]
[1764534971308,0.15535682,91271.0,91270.0,0.04314]
[1764534971605,0.13979682,91271.0,91270.0,0.04314]
[1764534973405,0.12423682,91271.0,91270.0,0.04314]
[1764534975005,0.00216435,91271.0,91270.0,0.04314]
[1764534982714,0.14598284,91290.0,91278.0,0.0685063]
[1764534982917,0.39192,91287.0,91286.0,0.04439]
[1764534983311,0.51742346,91287.0,91286.0,0.04439]
[1764534984014,0.51742346,91287.0,91286.0,0.0553453]
[1764534984516,0.52042346,91287.0,91286.0,0.0573453]
[1764534994117,0.15962346,91287.0,91286.0,0.0573453]
[1764535002424,0.15962346,91287.0,91286.0,0.0342253]
[1764535002918,0.15962346,91287.0,91286.0,0.0571353]
[1764535014525,0.18463694,91287.0,91286.0,0.0571353]
[1764535020538,0.15962346,91287.0,91286.0,0.0571353]
[1764535023440,0.15962346,91287.0,91286.0,0.04618]
[1764535023832,0.15962346,91287.0,91286.0,0.0571353]
[1764535024541,0.15962346,91287.0,91286.0,0.0710753]
[1764535024834,0.15962346,91287.0,91286.0,0.0342253]
[1764535025041,0.15962346,91287.0,91286.0,0.0129553]
[1764535025240,0.15962346,91287.0,91286.0,0.0357853]
[1764535025440,0.15962346,91287.0,91286.0,0.0579653]
[1764535029038,0.15962346,91287.0,91286.0,0.002]
[1764535029243,0.15962346,91287.0,91286.0,0.04701]
[1764535029637,0.15962346,91287.0,91286.0,0.0579653]
[1764535030641,0.15962346,91287.0,91286.0,0.002]
[1764535030843,0.17675038,91287.0,91286.0,0.002]
[1764535031037,0.20173233,91287.0,91286.0,0.002]
[1764535031232,0.20173233,91287.0,91286.0,0.04701]
[1764535031639,0.20173233,91287.0,91286.0,0.02483]
[1764535032246,0.20173233,91287.0,91286.0,0.002]
[1764535032636,0.20890233,91287.0,91286.0,0.002]
[1764535035347,0.20890327,91287.0,91286.0,0.002]
[1764535035842,0.56970327,91287.0,91286.0,0.002]
[1764535040952,0.56253327,91287.0,91286.0,0.002]
[1764535041153,0.56253327,91287.0,91286.0,0.02374]
[1764535042053,0.56253327,91287.0,91286.0,0.04633]
[1764535043451,0.56253339,91287.0,91286.0,0.04633]
[1764535053356,0.56253286,91287.0,91286.0,0.04633]
[1764535053964,0.20173286,91287.0,91286.0,0.04633]
[1764535054170,0.56253286,91287.0,91286.0,0.04633]
[1764535054459,0.52199091,91287.0,91286.0,0.04633]
[1764535054665,0.48930346,91287.0,91286.0,0.04633]
[1764535055052,0.50486346,91287.0,91286.0,0.04633]
[1764535055764,0.52042346,91287.0,91286.0,0.04633]
[1764535055954,0.48930346,91287.0,91286.0,0.04633]
[1764535056159,0.3638,91287.0,91286.0,0.04633]
[1764535058661,0.01856,91287.0,91286.0,0.04633]
[1764535059264,0.03412,91287.0,91286.0,0.04633]
[1764535059662,0.003,91287.0,91286.0,0.04633]
[1764535074077,0.01856,91287.0,91286.0,0.04633]
[1764535075674,0.03412,91287.0,91286.0,0.04633]
[1764535087490,0.03412,91287.0,91286.0,0.05984]
[1764535091089,0.01856,91287.0,91286.0,0.05984]
[1764535092695,0.003,91287.0,91286.0,0.05984]
[1764535093898,0.01856,91287.0,91286.0,0.05984]
[1764535096000,0.1500681,91287.0,91286.0,0.05984]
[1764535100599,0.17495004,91287.0,91286.0,0.05984]
[1764535104107,0.53575004,91287.0,91286.0,0.05984]
[1764535109421,0.53575004,91287.0,91286.0,0.04633]
[1764535109722,0.53575004,91287.0,91286.0,0.05953]
[1764535110522,0.5108681,91287.0,91286.0,0.05953]
[1764535137941,0.1500681,91287.0,91286.0,0.05953]
[1764535150450,0.17490472,91287.0,91286.0,0.05953]
[1764535160558,0.1500681,91287.0,91286.0,0.05953]
[1764535164957,0.1500681,91287.0,91286.0,0.002]
[1764535167350,0.1500681,91287.0,91277.0,0.00016435]
[1764535167351,0.03112,91278.0,91277.0,0.00016435]
[1764535167667,0.97026756,91278.0,91277.0,0.00016435]
[1764535168560,0.97226756,91278.0,91277.0,0.00016435]
[1764535168861,0.97326756,91278.0,91277.0,0.00016435]
[1764535169256,0.03112,91267.0,91266.0,0.05748]
[1764535169651,0.1494641,91267.0,91266.0,0.05748]
[1764535170458,0.1494641,91267.0,91266.0,0.04401]
[1764535170658,0.1494641,91267.0,91262.0,0.04401]
[1764535170659,0.03112,91263.0,91262.0,0.04401]
[1764535170854,0.0420782,91262.0,91261.0,0.01392242]
[1764535171164,0.03112,91255.0,91254.0,0.05748]
[1764535172356,0.03312,91255.0,91254.0,0.06988417]
[1764535175461,0.002,91255.0,91254.0,0.06988417]
[1764535186472,0.39192,91271.0,91270.0,0.0540972]
[1764535186664,0.3608,91271.0,91270.0,0.0540972]
[1764535186866,0.48621069,91271.0,91270.0,0.0540972]
[1764535187575,0.3618,91271.0,91270.0,0.0540972]
[1764535187972,0.3628,91271.0,91270.0,0.0540972]
[1764535192663,0.37836,91271.0,91270.0,0.0540972]
[1764535194566,0.39392,91271.0,91270.0,0.0540972]
[1764535199879,0.03112,91267.0,91266.0,0.05607]
[1764535200675,0.11858872,91267.0,91263.0,0.02194]
[1764535200869,0.03112,91255.0,91254.0,0.03449864]
[1764535201073,0.03112,91255.0,91254.0,0.05569864]
[1764535201270,0.14970872,91255.0,91254.0,0.01255864]
[1764535201461,0.14970872,91255.0,91244.0,0.3608]
[1764535201462,0.03112,91247.0,91244.0,0.3608]
[1764535201663,0.06112,91247.0,91246.0,0.01234116]
[1764535201873,0.03112,91225.0,91224.0,0.3937027]
[1764535202078,0.03112,91225.0,91224.0,0.4278327]
[1764535202575,0.00016435,91234.0,91233.0,0.0541017]
[1764535202576,0.03128435,91234.0,91233.0,0.0541017]
[1764535202766,0.00016435,91234.0,91233.0,0.0541017]
[1764535203279,0.01572435,91234.0,91233.0,0.0541017]
[1764535203571,0.03128435,91234.0,91233.0,0.0541017]
[1764535203774,0.00016435,91234.0,91233.0,0.0541017]
[1764535204480,0.01572435,91234.0,91233.0,0.0541017]
[1764535204682,0.00016435,91234.0,91233.0,0.0541017]
[1764535205180,0.00216435,91234.0,91233.0,0.0551017]
[1764535205682,0.03328435,91234.0,91233.0,0.0551017]
[1764535205884,0.01772435,91234.0,91233.0,0.0551017]
[1764535206382,0.03328435,91234.0,91233.0,0.0551017]
[1764535209497,0.01772435,91234.0,91233.0,0.0551017]
[1764535209783,0.00216435,91234.0,91233.0,0.0551017]
[1764535211485,0.01772435,91234.0,91233.0,0.0551017]
[1764535211678,0.03328435,91234.0,91233.0,0.0551017]
[1764535211986,0.01772435,91234.0,91233.0,0.0551017]
[1764535212189,0.00216435,91234.0,91233.0,0.0551017]
[1764535213482,0.03328435,91234.0,91233.0,0.0551017]
[1764535213689,0.01772435,91234.0,91233.0,0.0551017]
[1764535213883,0.00216435,91234.0,91233.0,0.0551017]
[1764535217388,0.00216435,91234.0,91233.0,0.4351017]
[1764535218581,0.00216435,91234.0,91233.0,0.1151017]
[1764535220676,0.01772435,91234.0,91233.0,0.0551017]
[1764535222689,0.00216435,91234.0,91233.0,0.0551017]
[1764535223387,0.00216435,91234.0,91233.0,0.2277017]
[1764535225988,0.00216435,91234.0,91233.0,0.5885017]
[1764535229499,4.35e-06,91234.0,91233.0,1.0085017]
[1764535229688,0.09816551,91285.0,91233.0,1.0085017]
[1764535229689,0.39626,91262.0,91261.0,0.04505]
[1764535229994,0.42430197,91262.0,91261.0,0.04505]
[1764535230193,0.39626,91262.0,91261.0,0.04505]
[1764535230778,0.39726,91262.0,91261.0,0.04505]
[1764535231394,0.39826,91262.0,91261.0,0.04505]
[1764535231896,0.002,91262.0,91261.0,0.04505]
[1764535232790,0.01973,91262.0,91261.0,0.04505]
[1764535233092,0.03746,91262.0,91261.0,0.04505]
[1764535243099,0.01973,91262.0,91261.0,0.04505]
[1764535243298,0.002,91262.0,91261.0,0.04505]
[1764535245400,0.01973,91262.0,91261.0,0.04505]
[1764535247300,0.03746,91262.0,91261.0,0.04505]
[1764535260402,0.01973,91262.0,91261.0,0.04505]
[1764535260807,0.002,91262.0,91261.0,0.04505]
[1764535263410,0.39626,91282.0,91281.0,0.05872]
[1764535263610,0.4230119,91282.0,91281.0,0.05872]
[1764535263806,0.54318192,91282.0,91281.0,0.05872]
[1764535264309,0.51643002,91282.0,91281.0,0.05872]
[1764535264515,0.51643002,91282.0,91281.0,0.06072]
[1764535264908,0.51943002,91282.0,91281.0,0.06572]
[1764535265317,0.51943002,91282.0,91281.0,0.05187]
[1764535273315,0.15863002,91282.0,91281.0,0.05187]
[1764535274015,0.15863002,91282.0,91281.0,0.06565]
[1764535275417,0.003,91282.0,91281.0,0.06565]
[1764535276406,0.003,91282.0,91281.0,0.06365]
[1764535277611,0.00027387,91286.0,91285.0,0.04644]
[1764535279013,0.01900387,91286.0,91285.0,0.0603954]
[1764535280521,0.03673387,91286.0,91285.0,0.0603954]
[1764535285132,0.03673387,91286.0,91285.0,0.04944]
[1764535295832,0.03673387,91286.0,91285.0,0.003]
[1764535296533,0.03673387,91286.0,91285.0,0.02531]
[1764535296729,0.03673387,91286.0,91285.0,0.04861]
[1764535297338,0.03673387,91286.0,91285.0,0.0595654]
[1764535297536,0.03673387,91286.0,91285.0,0.04861]
[1764535298735,0.03673387,91286.0,91285.0,0.003]
[1764535298736,0.51976188,91286.0,91285.0,0.003]
[1764535298940,0.54610312,91286.0,91285.0,0.003]
[1764535299237,0.54610312,91286.0,91285.0,0.02531]
[1764535299736,0.54610312,91286.0,91285.0,0.003]
[1764535299922,0.54610312,91286.0,91285.0,0.02531]
[1764535300124,0.54610312,91286.0,91285.0,0.04861]
[1764535302623,0.51976188,91286.0,91285.0,0.04861]
[1764535304743,0.39753387,91286.0,91285.0,0.04861]
[1764535305536,0.00127387,91286.0,91285.0,0.04861]
[1764535306038,0.00016435,91291.0,91290.0,0.04497]
[1764535306236,0.00016435,91291.0,91290.0,0.0559248]
[1764535306435,0.39626,91304.0,91303.0,0.04497]
[1764535306833,0.51745059,91304.0,91303.0,0.04497]
[1764535307026,0.3608,91313.0,91312.0,0.05784]
[1764535307232,0.36107375,91326.0,91325.0,0.04497]
[1764535307429,0.00027375,91326.0,91325.0,0.40577]
[1764535307630,0.00016426,91335.0,91334.0,0.0559195]
[1764535308033,0.0286773,91353.0,91352.0,0.04497]
[1764535308234,0.07273906,91353.0,91352.0,0.04497]
[1764535308441,0.16722825,91353.0,91352.0,0.04497]
[1764535309239,0.15628095,91353.0,91352.0,0.04497]
[1764535309434,0.15728095,91353.0,91352.0,0.04497]
[1764535310430,0.03546,91347.0,91346.0,0.0559181]
[1764535310835,0.1520846,91347.0,91346.0,0.0559181]
[1764535311237,0.03546,91344.0,91343.0,0.00016426]
[1764535311540,0.15297699,91344.0,91343.0,0.00016426]
[1764535312441,0.15297699,91344.0,91343.0,0.02257426]
[1764535312644,0.15297699,91344.0,91343.0,0.04513426]
[1764535313339,0.15297699,91344.0,91343.0,0.00016426]
[1764535313542,0.15497699,91344.0,91343.0,0.00016426]
[1764535314236,0.15897699,91344.0,91343.0,0.02257426]
[1764535314732,0.15397699,91344.0,91343.0,0.00016426]
[1764535314933,0.15797699,91344.0,91343.0,0.00016426]
[1764535315138,0.15897699,91344.0,91343.0,0.00016426]
[1764535315339,0.18897699,91344.0,91343.0,0.00016426]
[1764535315540,0.15897699,91344.0,91343.0,0.00016426]
[1764535316645,0.15397699,91344.0,91343.0,0.00016426]
[1764535316846,0.15997699,91344.0,91343.0,0.00116426]
[1764535317043,0.15897699,91344.0,91343.0,0.00116426]
[1764535317343,0.15997699,91344.0,91343.0,0.00116426]
[1764535317840,0.15397699,91344.0,91343.0,0.00016426]
[1764535318036,0.15997699,91344.0,91343.0,0.00116426]
[1764535319947,0.15997699,91344.0,91343.0,0.04613426]
[1764535321441,0.15997699,91344.0,91343.0,0.00116426]
[1764535321847,0.03546,91316.0,91315.0,0.02241]
[1764535322148,0.16297712,91316.0,91315.0,0.05784]
[1764535322333,0.15202542,91316.0,91315.0,0.05784]
[1764535323149,0.15202542,91316.0,91315.0,0.05884]
[1764535324749,0.15402542,91316.0,91315.0,0.05784]
[1764535325145,0.13629542,91316.0,91315.0,0.05784]
[1764535325350,0.11856542,91316.0,91315.0,0.05784]
[1764535325750,0.15402542,91316.0,91315.0,0.05784]
[1764535326253,0.15502542,91316.0,91315.0,0.05784]
[1764535326748,0.15502542,91316.0,91315.0,0.0687918]
[1764535326945,0.13729542,91316.0,91315.0,0.0687918]
[1764535327645,0.15502542,91316.0,91315.0,0.05784]
[1764535330350,0.15502542,91316.0,91315.0,0.0687918]
[1764535330559,0.15502542,91316.0,91315.0,0.05784]
[1764535351275,0.18123546,91316.0,91315.0,0.05784]
[1764535355676,0.18127523,91316.0,91315.0,0.05784]
[1764535358278,0.15502542,91316.0,91315.0,0.05784]
[1764535360665,0.18128154,91316.0,91315.0,0.05784]
[1764535362974,0.04698612,91316.0,91315.0,0.05784]
[1764535363376,0.07150612,91316.0,91315.0,0.05784]
[1764535370592,0.04525,91316.0,91315.0,0.05784]
[1764535380409,0.04525,91316.0,91312.0,0.01487428]
[1764535380410,0.04204,91313.0,91312.0,0.06177428]
[1764535380714,0.04204,91313.0,91312.0,0.0578522]
[1764535381414,0.04204,91313.0,91312.0,0.07178847]
[1764535381914,0.04404,91313.0,91312.0,0.06083627]
[1764535398131,0.15799448,91313.0,91312.0,0.01393627]
[1764535398330,0.0464128,91307.0,91306.0,0.00016426]
[1764535398720,0.0464128,91307.0,91306.0,0.03502401]
[1764535398925,0.0464128,91307.0,91306.0,0.05722401]
[1764535400322,0.0484128,91307.0,91306.0,0.05722401]
[1764535400928,0.0494128,91307.0,91306.0,0.05722401]
[1764535401534,0.0504128,91307.0,91306.0,0.05722401]
[1764535402433,0.0474128,91307.0,91306.0,0.05722401]
[1764535402630,0.0514128,91307.0,91306.0,0.05722401]
[1764535403635,0.17517436,91307.0,91306.0,0.01399401]
[1764535404135,0.17517436,91307.0,91306.0,0.03677401]
[1764535406424,0.17517436,91307.0,91306.0,0.01399401]
[1764535406629,0.53597436,91307.0,91306.0,0.01399401]
[1764535407328,0.53597436,91307.0,91306.0,0.01272021]
[1764535407535,0.0464136,91300.0,91299.0,0.05793]
[1764535408731,0.0464136,91300.0,91299.0,0.07191961]
[1764535408928,0.0474136,91300.0,91299.0,0.07191961]
[1764535410242,0.0464136,91300.0,91299.0,0.07191961]
[1764535410432,0.0484136,91300.0,91299.0,0.07191961]
[1764535414342,0.03746,91300.0,91299.0,0.07191961]
[1764535415944,0.002,91300.0,91299.0,0.07191961]
[1764535417445,0.01973,91300.0,91299.0,0.07191961]
[1764535417746,0.002,91300.0,91299.0,0.07191961]
[1764535430260,0.03746,91300.0,91299.0,0.07191961]
[1764535432367,0.002,91300.0,91299.0,0.07191961]
[1764535439177,0.01973,91300.0,91299.0,0.07191961]
[1764535439373,0.002,91300.0,91299.0,0.07191961]
[1764535471800,0.15476589,91300.0,91299.0,0.07191961]
[1764535472001,0.002,91300.0,91299.0,0.07191961]
[1764535478407,0.3608,91309.0,91300.0,0.0109536]
[1764535478607,0.3608,91309.0,91308.0,0.0573]
[1764535478801,0.38695472,91309.0,91308.0,0.0573]
[1764535479511,0.40668472,91309.0,91308.0,0.0573]
[1764535479712,0.40968472,91309.0,91308.0,0.0573]
[1764535480111,0.40668472,91309.0,91308.0,0.0573]
[1764535480311,0.41168472,91309.0,91308.0,0.0583]
[1764535481014,0.41268472,91309.0,91308.0,0.0583]
[1764535481709,0.43241472,91309.0,91308.0,0.0583]
[1764535485410,0.43241472,91309.0,91308.0,0.0783]
[1764535485411,0.03215472,91309.0,91308.0,0.0783]
[1764535485615,0.03946,91320.0,91319.0,0.04402]
[1764535485918,0.19190873,91320.0,91319.0,0.04402]
[1764535486229,0.16574936,91320.0,91319.0,0.04402]
[1764535487115,0.16674936,91320.0,91319.0,0.04402]
[1764535487924,0.17174936,91320.0,91319.0,0.04402]
[1764535495031,0.006,91320.0,91319.0,0.04402]
[1764535495222,0.00016426,91325.0,91324.0,0.0549707]
[1764535495527,0.3608,91327.0,91326.0,0.05721]
[1764535497222,0.3608,91327.0,91326.0,0.05921]
[1764535498433,0.3618,91327.0,91326.0,0.07521]
[1764535499227,0.001,91327.0,91326.0,0.07521]
[1764535500726,0.04046,91327.0,91326.0,0.07521]
[1764535501336,0.15682491,91327.0,91326.0,0.07521]
[1764535501532,0.15682491,91327.0,91317.0,0.37399]
[1764535501533,0.03946,91311.0,91310.0,0.00016426]
[1764535501736,0.03946,91311.0,91310.0,0.04418426]
[1764535502037,0.16459758,91311.0,91310.0,0.02173426]
[1764535502238,0.16459758,91311.0,91310.0,0.00016426]
[1764535502636,0.16559758,91311.0,91310.0,0.04418426]
[1764535503640,0.16859758,91311.0,91310.0,0.04418426]
[1764535506534,0.004,91311.0,91310.0,0.04418426]
[1764535513343,0.38053,91328.0,91327.0,0.0549704]
[1764535513540,0.3608,91328.0,91327.0,0.0549704]
[1764535513846,0.47717326,91328.0,91327.0,0.0549704]
[1764535514251,0.49690326,91328.0,91327.0,0.0549704]
[1764535514747,0.49790326,91328.0,91327.0,0.0659704]
[1764535515251,0.51763326,91328.0,91327.0,0.0659704]
[1764535516249,0.3618,91328.0,91327.0,0.0659704]
[1764535517444,0.001,91328.0,91327.0,0.0659704]
[1764535517754,0.3608,91346.0,91335.0,0.0538994]
[1764535517953,0.40026,91346.0,91345.0,0.04295]
[1764535519355,0.40026,91346.0,91345.0,0.04495]
[1764535519957,0.03978,91386.0,91385.0,0.04295]
[1764535520156,0.01989,91387.0,91386.0,0.02173]
[1764535520455,0.01019,91396.0,91386.0,0.3608]
[1764535520642,0.03978,91387.0,91386.0,0.3608]
[1764535520842,0.1618097,91387.0,91386.0,0.73483728]
[1764535521158,0.03978,91387.0,91386.0,0.75656728]
[1764535521355,0.1618097,91387.0,91386.0,0.75656728]
[1764535522041,0.1618097,91387.0,91386.0,0.74333]
[1764535522247,0.1618097,91387.0,91386.0,0.7216]
[1764535522945,0.1618097,91387.0,91386.0,0.77847]
[1764535523152,0.03994417,91396.0,91395.0,0.0538922]
[1764535523352,0.03994417,91396.0,91395.0,0.40375]
[1764535523653,0.1543293,91396.0,91395.0,0.4146922]
[1764535524153,0.1543293,91396.0,91395.0,0.4196922]
[1764535524354,0.1543293,91396.0,91395.0,0.4216922]
[1764535526052,0.1543293,91396.0,91395.0,0.3678]
[1764535529259,0.1543293,91396.0,91395.0,0.46908]
[1764535530170,0.1543293,91396.0,91395.0,0.3678]
[1764535534361,0.1543293,91396.0,91395.0,0.007]
[1764535534561,0.1543293,91396.0,91395.0,0.3678]
[1764535536662,0.1543293,91396.0,91395.0,0.007]
[1764535536858,0.1543293,91396.0,91395.0,0.3678]
[1764535537960,0.1543293,91396.0,91395.0,0.007]
[1764535538159,0.1543293,91396.0,91395.0,0.3678]
[1764535539468,0.17905123,91396.0,91395.0,0.3678]
[1764535540771,0.1543293,91396.0,91395.0,0.3678]
[1764535541362,0.17907428,91396.0,91395.0,0.3678]
[1764535545670,0.17907428,91396.0,91395.0,0.46638]
[1764535550175,0.57907428,91396.0,91395.0,0.3678]
[1764535550371,0.28907428,91396.0,91395.0,0.3678]
[1764535552376,0.36755572,91396.0,91395.0,0.3678]
[1764535552969,0.25755572,91396.0,91395.0,0.46638]
[1764535554279,0.17907428,91396.0,91395.0,0.46638]
[1764535554473,0.25755572,91396.0,91395.0,0.46638]
[1764535555279,0.17907428,91396.0,91395.0,0.46638]
[1764535555467,0.25755572,91396.0,91395.0,0.46638]
[1764535558479,0.17907428,91396.0,91395.0,0.46638]
[1764535560984,0.59907428,91396.0,91395.0,0.3678]
[1764535561282,0.1114939,91381.0,91380.0,0.40878]
[1764535561475,0.13623888,91381.0,91380.0,0.45938]
[1764535561682,0.25462412,91381.0,91380.0,0.45938]
[1764535562285,0.25862412,91381.0,91380.0,0.45938]
[1764535564480,0.25862412,91381.0,91380.0,0.48769]
[1764535575800,0.25862412,91381.0,91380.0,0.09858]
[1764535575994,0.1117643,91378.0,91377.0,0.10243417]
[1764535576194,0.13650928,91378.0,91377.0,0.10243417]
[1764535576494,0.25319511,91378.0,91377.0,0.10243417]
[1764535577203,0.25419511,91378.0,91377.0,0.10243417]
[1764535577502,0.25919511,91378.0,91377.0,0.10243417]
[1764535603717,0.21232511,91378.0,91377.0,0.49154417]
[1764535603925,0.14743081,91378.0,91377.0,0.49154417]
[1764535604327,0.20181081,91378.0,91377.0,0.49154417]
[1764535604525,0.25669081,91378.0,91377.0,0.49154417]
[1764535605030,0.25669081,91378.0,91377.0,0.46323417]
[1764535611238,0.20181081,91378.0,91377.0,0.46323417]
[1764535611839,0.25669081,91378.0,91377.0,0.46323417]
[1764535621250,0.12268583,91378.0,91377.0,0.47560417]
[1764535622347,0.17706583,91378.0,91377.0,0.47560417]
[1764535624555,0.24289013,91378.0,91377.0,0.46323417]
[1764535627747,0.24289013,91378.0,91377.0,0.47417857]
[1764535629658,0.24289013,91378.0,91377.0,0.11337857]
[1764535629854,0.24289013,91378.0,91377.0,0.47417857]
[1764535631457,0.24289013,91378.0,91377.0,0.46323417]
[1764535633760,0.23194583,91378.0,91377.0,0.46323417]
[1764535633961,0.12268583,91378.0,91377.0,0.64913417]
[1764535634161,0.0109435,91385.0,91384.0,0.1126335]
[1764535634451,0.20176461,91385.0,91384.0,0.1126335]
[1764535634652,0.25369461,91385.0,91384.0,0.1126335]
[1764535635054,0.25369461,91385.0,91384.0,0.10169]
[1764535635254,0.26169461,91385.0,91384.0,0.10169]
[1764535636256,0.25075111,91385.0,91384.0,0.10169]
[1764535636960,0.22614858,91385.0,91384.0,0.10169]
[1764535637164,0.17421858,91385.0,91384.0,0.10169]
[1764535637553,0.17421858,91385.0,91384.0,0.12297]
[1764535638361,0.12509858,91385.0,91384.0,0.12297]
[1764535640250,0.008,91385.0,91384.0,0.12297]
[1764535644666,0.10296,91385.0,91384.0,0.10169]
[1764535648868,0.10296,91385.0,91384.0,0.27413]
[1764535650469,0.05712,91385.0,91384.0,0.27413]
[1764535650660,0.008,91385.0,91384.0,0.27413]
[1764535652668,0.008,91385.0,91384.0,0.10169]
[1764535652862,0.008,91385.0,91384.0,0.27413]
[1764535654782,0.05616,91385.0,91384.0,0.27413]
[1764535659474,0.05616,91385.0,91384.0,0.99573]
[1764535660466,0.102,91385.0,91384.0,0.99573]
[1764535663281,0.102,91385.0,91384.0,0.99569]
[1764535665872,0.102,91385.0,91384.0,0.82329]
[1764535666078,0.22300453,91385.0,91384.0,0.99569]
[1764535666575,0.22300453,91385.0,91384.0,0.82329]
[1764535666776,0.24752164,91385.0,91384.0,0.82329]
[1764535673680,0.24752164,91385.0,91384.0,0.46249]
[1764535674975,0.15352164,91385.0,91384.0,0.4734335]
[1764535675178,0.008,91385.0,91384.0,0.4734335]
[1764535675384,0.0990025,91393.0,91392.0,0.0973026]
[1764535675575,0.0990025,91393.0,91392.0,0.4581026]
[1764535675774,0.21564666,91393.0,91392.0,0.4581026]
[1764535676078,0.20470416,91393.0,91392.0,0.4581026]
[1764535676471,0.20470416,91393.0,91392.0,0.44716]
[1764535677087,0.20470416,91393.0,91392.0,0.44916]
[1764535677679,0.20470416,91393.0,91392.0,0.46316]
[1764535679577,0.20470416,91393.0,91392.0,0.10236]
[1764535679776,0.20470416,91393.0,91392.0,0.46316]
[1764535681083,0.22920451,91393.0,91392.0,0.46316]
[1764535682376,0.22929953,91393.0,91392.0,0.46316]
[1764535682576,0.11664416,91393.0,91392.0,0.48222]
[1764535682978,0.20567517,91395.0,91394.0,0.08636]
[1764535683177,0.11265551,91395.0,91394.0,0.08636]
[1764535683374,0.08833351,91406.0,91405.0,0.097301]
[1764535683573,0.02486836,91406.0,91405.0,0.458101]
[1764535683772,0.14254712,91406.0,91405.0,0.458101]
[1764535684386,0.11795227,91406.0,91405.0,0.458101]
[1764535684877,0.11895227,91406.0,91405.0,0.458101]
[1764535686878,0.20701227,91406.0,91405.0,0.458101]
[1764535691089,0.00010783,91415.0,91414.0,0.0973]
[1764535691392,0.11331,91428.0,91427.0,0.08636]
[1764535691587,0.11331,91428.0,91427.0,0.44716]
[1764535691782,0.2276055,91428.0,91427.0,0.44716]
[1764535693293,0.2276055,91428.0,91427.0,0.44816]
[1764535693685,0.2023555,91428.0,91427.0,0.44816]
[1764535694088,0.0960576,91435.0,91434.0,0.08234]
[1764535694488,0.21663333,91435.0,91434.0,0.08234]
[1764535694895,0.1210783,91428.0,91427.0,0.3708]
[1764535695197,0.2368191,91428.0,91427.0,0.3708]
[1764535695694,0.2368191,91428.0,91427.0,0.3698]
[1764535696297,0.2368191,91428.0,91427.0,0.3608]
[1764535696596,0.2368191,91428.0,91427.0,0.3618]
[1764535696898,0.2368191,91428.0,91427.0,0.3708]
[1764535698893,0.5968191,91428.0,91427.0,0.3708]
[1764535699092,0.32132244,91428.0,91427.0,0.3708]
[1764535703799,0.32132244,91428.0,91427.0,0.01]
[1764535705903,0.59132244,91428.0,91427.0,0.01]
[1764535706091,0.0889389,91423.0,91422.0,0.3608]
[1764535706396,0.67946367,91423.0,91422.0,0.3608]
[1764535706587,0.0889394,91419.0,91418.0,0.00016408]
[1764535706788,0.56344274,91419.0,91418.0,0.00016408]
[1764535706988,0.68946417,91419.0,91418.0,0.00016408]
[1764535708289,0.23946417,91419.0,91418.0,0.00016408]
[1764535708488,0.23946417,91419.0,91418.0,0.03895408]
[1764535708689,0.23946417,91419.0,91418.0,0.07935408]
[1764535718802,0.23946417,91419.0,91418.0,0.00016408]
[1764535722506,0.65946417,91419.0,91418.0,0.00016408]
[1764535723598,0.40946417,91419.0,91418.0,0.00016408]
[1764535724298,0.40946417,91419.0,91418.0,0.03886408]
[1764535724500,0.40946417,91419.0,91418.0,0.00016408]
[1764535727795,0.55946417,91419.0,91418.0,0.00016408]
[1764535729411,0.55947503,91419.0,91418.0,0.00016408]
[1764535742023,0.0882714,91402.0,91401.0,0.3608]
[1764535742222,0.0882735,91384.0,91383.0,0.43841]
[1764535742414,0.11277325,91384.0,91383.0,0.3995]
[1764535742625,0.22771277,91384.0,91383.0,0.3995]
[1764535743222,0.22771277,91384.0,91383.0,0.43841]
[1764535745316,0.20321302,91384.0,91383.0,0.43841]
[1764535746717,0.20321302,91384.0,91383.0,0.3995]
[1764535747030,0.22809798,91384.0,91383.0,0.3995]
[1764535747720,0.22809798,91384.0,91383.0,0.43841]
[1764535749326,0.20321302,91384.0,91383.0,0.43841]
[1764535749635,0.22807446,91384.0,91383.0,0.07761]
[1764535750317,0.20321302,91384.0,91383.0,0.07761]
[1764535750512,0.16582302,91384.0,91383.0,0.07761]
[1764535750709,0.12588302,91384.0,91383.0,0.07761]
[1764535751030,0.16582302,91384.0,91383.0,0.07761]
[1764535751413,0.20321302,91384.0,91383.0,0.07761]
[1764535765432,0.11493952,91384.0,91383.0,0.07761]
[1764535765835,0.0775329,91390.0,91389.0,0.0672]
[1764535766136,0.19448716,91390.0,91389.0,0.428]
[1764535770934,0.21940186,91390.0,91389.0,0.428]
[1764535772638,0.18748186,91390.0,91389.0,0.428]
[1764535774535,0.21940186,91390.0,91389.0,0.428]
[1764535782441,0.21940186,91390.0,91389.0,0.0672]
[1764535782737,0.21940186,91390.0,91389.0,0.428]
[1764535785838,0.21940186,91390.0,91389.0,0.44661]
[1764535788738,0.21940186,91390.0,91389.0,0.08581]
[1764535798254,0.21940186,91390.0,91389.0,0.0672]
[1764535801150,0.0109432,91387.0,91376.0,0.3608]
[1764535801352,0.0917644,91377.0,91376.0,0.3608]
[1764535801561,0.2066791,91377.0,91376.0,0.3608]
[1764535801749,0.32700134,91377.0,91376.0,0.3608]
[1764535802269,0.34700134,91377.0,91376.0,0.3608]
[1764535802660,0.34700134,91377.0,91376.0,0.39096]
[1764535804960,0.34700134,91377.0,91376.0,0.03016]
[1764535807057,0.34700134,91377.0,91376.0,0.0624]
[1764535808265,0.23700134,91377.0,91376.0,0.0624]
[1764535811970,0.25411324,91377.0,91376.0,0.0624]
[1764535813072,0.22919854,91377.0,91376.0,0.0624]
[1764535815067,0.22919854,91377.0,91373.0,0.01186853]